Workbook

Sheet MATRIZ DE INDICADORES
D2: MACROPROCESO ESTRATÉGICO | S2: CÓDIGO: ESGr027
D3: PROCESO GESTIÓN SISTEMAS INTEGRADOS - CALIDAD | S3: VERSIÓN: 8
D4: MATRIZ DE MEDICIÓN Y SEGUIMIENTO A LOS PROCESOS DE GESTIÓN | S4: VIGENCIA: 2023-07-28
S5: PÁGINA: 1 de 6
Q7: FECHA DE ACTUALIZACIÓN: | S7: AÑO | T7: MES | U7: DÍA
S8: 2024 | T8: 2 | U8: 21
B10: ALINEACIÓN DE LOS INDICADORES CON LOS DOCUMENTOS ESTRATÉGICOS Y LOS OBJETIVOS DE CALIDAD
B12: PROCESO GESTIÓN | C12: FRENTES DEL PLAN ESTRATÉGICO | D12: LINEAMIENTOS DE LA POLÍTICA DE CALIDAD | E12: OBJETIVOS DE CALIDAD | F12: OBJETIVO GENERAL DEL PROCESO | G12: OBJETIVOS ESPECÍFICOS | H12: NOMBRE INDICADOR | I12: FÓRMULA | J12: TIPO DE INDICADOR | K12: SEGUIMIENTO MEDICIÓN | L12: META | M12: ACTIVIDAD | N12: RESPONSABLE DE LA ACTIVIDAD | O12: ¿QUÉ RECURSOS SE REQUIEREN? | P12: FECHA EJECUCIÓN DE ACTIVIDADES | Q12: EVIDENCIA | R12: ¿CUÁNDO FINALIZARÁ? | S12: RESULTADO | T12: NIVEL OBTENIDO | U12: ACCESO
C13: Frente Estratégico VI: Organización universitaria inteligente con alma y corazón. | D13: Se legitima como una organización social del conocimiento y el aprendizaje que se compromete con el pensamiento basado en riesgos y el mejoramiento continuo mediante buenas prácticas administrativas y académicas en búsqueda de la acreditación de programas y la acreditación institucional, enfocándose en el bienestar de la comunidad universitaria como factor constitutivo de la vida y la libertad y la consolidación de una organización universitaria inteligente con alma y corazón. | E13: 5. Mejorar continuamente el desempeño de los procesos a través de la implementación de buenas prácticas institucionales y de la aplicación de los mecanismos dispuestos por la Universidad de Cundinamarca, para la constitución de una organización universitaria inteligente con alma y corazón | F13: Realizar verificación, seguimiento, evaluación y control de manera oportuna y sistemática a los Macro procesos que conforman el modelo de operación de la Universidad a través de mecanismos e instrumentos que garanticen el cumplimiento de la normatividad aplicable y el mejoramiento continuo. | G13: Gestionar el total de los planes agregados al 2023 a estado en ejecución durante la vigencia 2024, con un seguimiento trimestral al personal de control interno encargado del proceso. | H13: Gestión de planes en estado agregado a estado en ejecución | I13: Número de planes en estado agregado a estado en ejecución*100/Total de planes agregados (sobre la vigencia del 2023 hacia atrás) | J13: Eficacia | K13: Trimestral | L13: 1 | M13: 1.1 Identificar los planes de mejoramiento agregados de la vigencia del 2023 hacia atrás, identificar el proceso y asignar al personal de Control Interno | N13: Dirección de Control Interno | O13: Aplicativo Planes de Mejoramiento, Recurso humano | P13: 2024-01-01 | Q13: Acta de seguimiento | R13: 2024-12-31 | S13: 0.89 | T13: BUENO | U13: SCI-8
M14: 1.2 Implementar seguimiento al personal de Control Interno | N14: Dirección de Control Interno | O14: Recurso Humano, Información documentada | P14: Bimestral 2024 | Q14: Actas de seguimiento interno
M15: 1.3 Implementar función preventiva, si aplica | N15: Dirección de Control Interno | O15: Recurso Humano, Información documentada | P15: Cada vez que aplique | Q15: Función Preventiva
M16: 1.4 Evaluar mediante el indicador establecido | N16: Dirección de Control Interno | O16: Recurso Humano, Información documentada | P16: Marzo / Junio / Septiembre / Diciembre 2024 | Q16: Reporte del indicador - Ficha técnica
G17: Cumplir el indicador institucional de nivel de mejoramiento en correspondencia con los procesos. | H17: Nivel de Mejoramiento | I17: Planes cerrados*100/Planes abiertos (sobre la vigencia del 2023 hacia atrás) | J17: Eficacia | K17: Trimestral | L17: 0.75 | M17: 2.1 Identificar los planes de mejoramiento en ejecución de la vigencia del 2023 hacia atrás, identificar el proceso y asignar al personal de Control Interno | N17: Dirección de Control Interno | O17: Recurso Humano, Información documentada, Aplicativo de Planes de Mejoramiento (tecnológico) | P17: 2024-02-01 | Q17: Base de datos generado en el primer reporte del indicador | R17: 2024-12-31 | S17: 0.61 | T17: ACEPTABLE | U17: INS-2
M18: 2.2 Implementar las actividades del procedimiento SCIP02 - Acciones Correctivas y de Mejora | N18: Dirección de Control Interno | O18: Recurso Humano, Información documentada, Aplicativo de Planes de Mejoramiento (tecnológico) | P18: 2024 | Q18: Registros de los seguimientos en el aplicativo
M19: 2.3 Verificar cierre de planes de mejoramiento | N19: Dirección de Control Interno | O19: Recurso Humano, Información documentada, Aplicativo de Planes de Mejoramiento (tecnológico) | P19: Bimestral 2024 | Q19: Actas de seguimiento interno
M20: 2.4 Evaluar mediante el indicador establecido | N20: Dirección de Control Interno | O20: Recurso Humano, Información documentada | P20: Marzo / Junio / Septiembre / Diciembre 2024 | Q20: Reporte del indicador - Ficha técnica
G21: Detectar la materialización del riesgo para fortalecer el control interno desde la tercera línea de defensa. | H21: Eficacia en el control de riesgos | I21: No. de riesgos (A - E) residuales operativos institucionales controlados/Total de riesgos Altos y Extremos residuales operativos institucionales | J21: Eficacia | K21: Semestral | L21: 0.8 | M21: 4.1 Consolidar información de entrada para la evaluación de la materialización de los riesgos | N21: Dirección de Control Interno | O21: Recurso Humano, Información documentada, herramientas ofimáticas | P21: Enero-Agosto 2024 | Q21: OneDrive | R21: 2024-12-31 | S21: 0.8 | T21: EXCELENTE | U21: INS-5
M22: 4.2 Implementar la actividad 13 del procedimiento ESGP05 - Gestión del Riesgo y las Oportunidades | N22: Dirección de Control Interno | O22: Recurso Humano, Información documentada, herramientas ofimáticas | P22: Enero-Agosto 2024 | Q22: Matrices de riesgos y oportunidades de cada proceso, Informes de materialización de riesgos por cada proceso
M23: 4.3 Evaluar mediante el indicador establecido | N23: Dirección de Control Interno | O23: Recurso Humano, Información documentada | P23: Semestral 2024 | Q23: Reporte del indicador - Ficha técnica
B35: Diagonal 18 No. 20-29 Fusagasugá – Cundinamarca Teléfono (601) 8281483 Línea Gratuita 018000180414 www.ucundinamarca.edu.co E-mail: info@ucundinamarca.edu.co NIT: 890.680.062-2
B36: Documento controlado por el Sistema de Gestión de la Calidad Asegúrese que corresponde a la última versión consultando el Portal Institucional
C57: LINEAMIENTOS DE LA POLÍTICA DE CALIDAD | D57: OBJETIVOS DE CALIDAD | E57: ALINEACIÓN DE LOS INDICADORES CON LOS DOCUMENTOS ESTRATÉGICOS Y LOS OBJETIVOS DE CALIDAD
C58: LINEAMIENTOS DE LA POLÍTICA DE SEGURIDAD Y SALUD EN EL TRABAJO | D58: OBJETIVOS DE SEGURIDAD Y SALUD EN EL TRABAJO | E58: ALINEACIÓN DE LOS INDICADORES CON LOS DOCUMENTOS ESTRATÉGICOS Y LOS OBJETIVOS DE SEGURIDAD Y SALUD EN EL TRABAJO
C59: LINEAMIENTOS DE LA POLÍTICA DE AMBIENTAL | D59: OBJETIVOS DE AMBIENTAL | E59: ALINEACIÓN DE LOS INDICADORES CON LOS DOCUMENTOS ESTRATÉGICOS Y LOS OBJETIVOS DE AMBIENTAL
C60: LINEAMIENTOS DE LA POLÍTICA DE SEGURIDAD DE LA INFORMACIÓN | D60: OBJETIVOS DE SEGURIDAD DE LA INFORMACIÓN | E60: ALINEACIÓN DE LOS INDICADORES CON LOS DOCUMENTOS ESTRATÉGICOS Y LOS OBJETIVOS DE SEGURIDAD DE LA INFORMACIÓN
C61: LINEAMIENTOS DE LA POLÍTICA DE SEGURIDAD DE ANTISOBORNO | D61: OBJETIVOS DE SEGURIDAD DE ANTISOBORNO | E61: ALINEACIÓN DE LOS INDICADORES CON LOS DOCUMENTOS ESTRATÉGICOS Y LOS OBJETIVOS DE SEGURIDAD DE ANTISOBORNO
C62: LINEAMIENTOS DE LA POLÍTICA DE LA CONCILIACIÓN DE LA VIDA PERSONAL, FAMILIAR Y LABORAL | D62: OBJETIVOS DE LA CONCILIACIÓN DE LA VIDA PERSONAL, FAMILIAR Y LABORAL | E62: ALINEACIÓN DE LOS INDICADORES CON LOS DOCUMENTOS ESTRATÉGICOS Y LOS OBJETIVOS DE LA CONCILIACIÓN DE LA VIDA PERSONAL, FAMILIAR Y LABORAL

Sheet ----1 (hidden)
B2: REGRESAR
E5: MACROPROCESO ESTRATÉGICO | M5: CÓDIGO: ESGr027
E6: PROCESO GESTIÓN SISTEMAS INTEGRADOS | M6: VERSIÓN: 7
E7: MATRIZ DE MEDICIÓN Y SEGUIMIENTO A LOS PROCESOS DE GESTIÓN | M7: VIGENCIA: 2020-03-20
M8: PÁGINA: 1 de 1
C10: FICHA DE INDICADOR
C12: MACROPROCESO | I12: NOMBRE DEL INDICADOR
C13: PROCESO GESTIÓN
C14: RESPONSABLE DE MEDICIÓN
C16: 1. COMPORTAMIENTO DE INDICADOR
C17: CLASIFICACIÓN DE LA MEDICIÓN | E17: 2 | H17: TIPO DE INDICADOR | L17: META
C18: FORMULA | L18: UNIDAD DE MEDIDA
C20: TENDENCIA | H20: NIVEL DE SEGREGACIÓN * | L20: ESCALA
L21: Deficiente | M21: Aceptable | N21: Bueno | O21: Excelente
C23: ORIGEN DE DATOS | H23: FRECUENCIA DE LA MEDICIÓN | J23: TRIMESTRAL | L23: FRECUENCIA DE RESULTADO | N23: ANUAL
C26: RESULTADOS
J27: ANÁLISIS DE DATOS Los datos indican un crecimiento en los acompañamientos entre el primer trimestre y el segundo trimestre de mas del 100%, por la contratación del personal de la oficina En el tercer trimestre se muestra un decrecimiento con respecto al periodo anterior por las vacaciones a mitad de año, las personas se reintegraron entre julio y agosto.
J34: ACCIÓN FORMULADA Reformular la meta para el próximo año dependiendo de los recursos asignados.
J41: RESPONSABLE
J42: =E14 -> 0
C45: PERIODO DE EVALUACIÓN
C46: MES | D46: =IF(J23="MENSUAL","ENERO",IF(J23="TRIMESTRAL","MARZO",IF(J23="SEMESTRAL","JUNIO",IF(J23="ANUAL",YEAR(TODAY()),"")))) -> MARZO | E46: =IF(J23="MENSUAL","FEBRERO",IF(J23="TRIMESTRAL","JUNIO",IF(J23="SEMESTRAL","DICIEMBRE",""))) -> JUNIO | F46: =IF(J23="MENSUAL","MARZO",IF(J23="TRIMESTRAL","SEPTIEMBRE","")) -> SEPTIEMBRE | G46: =IF(J23="MENSUAL","ABRIL",IF(J23="TRIMESTRAL","DICIEMBRE","")) -> DICIEMBRE | H46: =IF(J23="MENSUAL","MAYO","") ->  | I46: =IF(J23="MENSUAL","JUNIO","") ->  | J46: =IF(J23="MENSUAL","JULIO","") ->  | K46: =IF(J23="MENSUAL","AGOSTO","") ->  | L46: =IF(J23="MENSUAL","SEPTIEMBRE","") ->  | M46: =IF(J23="MENSUAL","OCTUBRE","") ->  | N46: =IF(J23="MENSUAL","NOVIEMBRE","") ->  | O46: =IF(J23="MENSUAL","DICIEMBRE","") -> 
C47: =G18 -> 0
C48: =G19 -> 0
C49: VALOR | D49: =IFERROR(IF($E$17=1,D47/D48,IF($E$17=2,D47,"")),"") -> 0 | E49: =IFERROR(IF($E$17=1,E47/E48,IF($E$17=2,E47,"")),"") -> 0 | F49: 0 | G49: 0 | H49: 0 | I49: 0 | J49: 0 | K49: 0 | L49: 0 | M49: 0 | N49: 0 | O49: 0
C50: META PONDERADA | D50: =IF(AND(N23="ANUAL",J23="MENSUAL"),N17/12,IF(AND(N23="ANUAL",J23="TRIMESTRAL"),N17/4,IF(AND(N23="ANUAL",J23="SEMESTRAL"),N17/2,IF(AND(N23="ANUAL",J23="ANUAL"),N17,IF(AND(N23="SEMESTRAL",J23="MENSUAL"),N17/6,IF(AND(N23="SEMESTRAL",J23="TRIMESTRAL"),N17/2,IF(AND(N23="SEMESTRAL",J23="SEMESTRAL"),N17,IF(AND(N23="SEMESTRAL",J23="ANUAL"),"REVISAR FRECUENCIAS",IF(AND(N23="TRIMESTRAL",J23="MENSUAL"),N17/3,IF(AND(N23="TRIMESTRAL",J23="TRIMESTRAL"),N17,IF(AND(N23="TRIMESTRAL",J23="SEMESTRAL"),"REVISAR FRECUENCIAS",IF(AND(N23="TRIMESTRAL",J23="ANUAL"),"REVISAR FRECUENCIAS",IF(AND(N23="MENSUAL",J23="MENSUAL"),N17,IF(AND(N23="MENSUAL",J23="TRIMESTRAL"),"REVISAR FRECUENCIAS",IF(AND(N23="MENSUAL",J23="SEMESTRAL"),"REVISAR FRECUENCIAS",IF(AND(N23="MENSUAL",J23="ANUAL"),"REVISAR FRECUENCIAS","")))))))))))))))) -> 0 | E50: =IF(AND(N23="ANUAL",J23="MENSUAL"),N17/12+D50,IF(AND(N23="ANUAL",J23="TRIMESTRAL"),N17/4+D50,IF(AND(N23="ANUAL",J23="SEMESTRAL"),N17/2+D50,IF(AND(N23="SEMESTRAL",J23="MENSUAL"),N17/6+D50,IF(AND(N23="SEMESTRAL",J23="TRIMESTRAL"),N17/2+D50,IF(AND(N23="SEMESTRAL",J23="SEMESTRAL"),N17,IF(AND(N23="TRIMESTRAL",J23="MENSUAL"),N17/3+D50,IF(AND(N23="TRIMESTRAL",J23="TRIMESTRAL"),N17,IF(AND(N23="MENSUAL",J23="MENSUAL"),N17,""))))))))) -> 0 | F50: =IF(AND(N23="ANUAL",J23="MENSUAL"),N17/12+E50,IF(AND(N23="ANUAL",J23="TRIMESTRAL"),N17/4+E50,IF(AND(N23="SEMESTRAL",J23="MENSUAL"),N17/6+E50,IF(AND(N23="SEMESTRAL",J23="TRIMESTRAL"),N17/2,IF(AND(N23="TRIMESTRAL",J23="MENSUAL"),N17/3+E50,IF(AND(N23="TRIMESTRAL",J23="TRIMESTRAL"),N17,IF(AND(N23="MENSUAL",J23="MENSUAL"),N17,""))))))) -> 0 | G50: =IF(AND(N23="ANUAL",J23="MENSUAL"),N17/12+F50,IF(AND(N23="ANUAL",J23="TRIMESTRAL"),N17/4+F50,IF(AND(N23="SEMESTRAL",J23="MENSUAL"),N17/6+F50,IF(AND(N23="SEMESTRAL",J23="TRIMESTRAL"),N17/2+F50,IF(AND(N23="TRIMESTRAL",J23="MENSUAL"),N17/3,IF(AND(N23="TRIMESTRAL",J23="TRIMESTRAL"),N17,IF(AND(N23="MENSUAL",J23="MENSUAL"),N17,""))))))) -> 0 | H50: =IF(AND($N$23="ANUAL",$J$23="MENSUAL"),$N$17/12+G50,IF(AND(N23="SEMESTRAL",J23="MENSUAL"),N17/6+G50,IF(AND(N23="TRIMESTRAL",J23="MENSUAL"),N17/3+G50,IF(AND(N23="MENSUAL",J23="MENSUAL"),N17,"")))) ->  | I50: =IF(AND($N$23="ANUAL",$J$23="MENSUAL"),$N$17/12+H50,IF(AND(N23="SEMESTRAL",J23="MENSUAL"),N17/6+H50,IF(AND(N23="TRIMESTRAL",J23="MENSUAL"),N17/3+H50,IF(AND(N23="MENSUAL",J23="MENSUAL"),N17,"")))) ->  | J50: =IF(AND($N$23="ANUAL",$J$23="MENSUAL"),$N$17/12+I50,IF(AND(N23="SEMESTRAL",J23="MENSUAL"),N17/6,IF(AND(N23="TRIMESTRAL",J23="MENSUAL"),N17/3,IF(AND(N23="MENSUAL",J23="MENSUAL"),N17,"")))) ->  | K50: =IF(AND($N$23="ANUAL",$J$23="MENSUAL"),$N$17/12+J50,IF(AND(N23="SEMESTRAL",J23="MENSUAL"),N17/6+J50,IF(AND(N23="TRIMESTRAL",J23="MENSUAL"),N17/3+J50,IF(AND(N23="MENSUAL",J23="MENSUAL"),N17,"")))) ->  | L50: =IF(AND($N$23="ANUAL",$J$23="MENSUAL"),$N$17/12+K50,IF(AND(N23="SEMESTRAL",J23="MENSUAL"),N17/6+K50,IF(AND(N23="TRIMESTRAL",J23="MENSUAL"),N17/3+K50,IF(AND(N23="MENSUAL",J23="MENSUAL"),N17,"")))) ->  | M50: =IF(AND($N$23="ANUAL",$J$23="MENSUAL"),$N$17/12+L50,IF(AND(N23="SEMESTRAL",J23="MENSUAL"),N17/6+L50,IF(AND(N23="TRIMESTRAL",J23="MENSUAL"),N17/3,IF(AND(N23="MENSUAL",J23="MENSUAL"),N17,"")))) ->  | N50: =IF(AND($N$23="ANUAL",$J$23="MENSUAL"),$N$17/12+M50,IF(AND(N23="SEMESTRAL",J23="MENSUAL"),N17/6+M50,IF(AND(N23="TRIMESTRAL",J23="MENSUAL"),N17/3+M50,IF(AND(N23="MENSUAL",J23="MENSUAL"),N17,"")))) ->  | O50: =IF(AND($N$23="ANUAL",$J$23="MENSUAL"),$N$17/12+N50,IF(AND(N23="SEMESTRAL",J23="MENSUAL"),N17/6+N50,IF(AND(N23="TRIMESTRAL",J23="MENSUAL"),N17/3+N50,IF(AND(N23="MENSUAL",J23="MENSUAL"),N17,"")))) -> 
C52: NIVEL DE SEGREGACIÓN *
C53: UNIDAD SEGREGADA (Ej. Facultad, Programa Académico, Área) | G53: RESULTADO | K53: ANALISIS DE DATOS SEGREGADO
G73: Estratégico | J73: Eficacia
G74: Misional | J74: Eficiencia
G75: Apoyo | J75: Acreditación
G76: Seguimiento, Medición, Análisis y Evaluación | J76: Positiva
G77: Direccionamiento Estratégico | J77: Negativa
G78: Planeación Institucional | J78: Por Unidad Regional
G79: Proyectos Especiales y Relaciones Interinstitucionales | J79: Por Facultad
G80: Sistemas Integrados | J80: Por Programa Académico
G81: Autoevaluación y Acreditación | J81: Por área
G82: Comunicaciones | J82: Por Laboratorio
G83: Formación y Aprendizaje | J83: Otros
G84: Ciencia, Tecnología e Innovación | J84: No Aplica
G85: Interacción Social Universitaria
G86: Bienestar Universitario
G87: Admisiones y Registro
G88: Graduados
G89: Dialogando con el Mundo
G90: Talento Humano
G91: Jurídica
G92: Financiera
G93: Sistemas y Tecnología
G94: Bienes y Servicios
G95: Documental
G96: Apoyo Académico
G97: Control Interno
G98: Control Disciplinario
G99: Servicio de Atención al Ciudadano

Sheet INS 2
B2: REGRESAR
E5: MACROPROCESO ESTRATÉGICO | M5: CÓDIGO: ESGr027
E6: PROCESO GESTIÓN SISTEMAS INTEGRADOS - CALIDAD | M6: VERSIÓN: 8
E7: MATRIZ DE MEDICIÓN Y SEGUIMIENTO A LOS PROCESOS DE GESTIÓN | M7: VIGENCIA: 2023-07-28
M8: PÁGINA: 2 de 6
C10: FICHA DE INDICADOR
C12: MACROPROCESO | E12: Seguimiento, Medición, Análisis y Evaluación | I12: NOMBRE DEL INDICADOR | K12: Nivel de mejoramiento
C13: PROCESO GESTIÓN | E13: Control Interno
C14: RESPONSABLE DE MEDICIÓN | E14: Director de Control Interno
C16: 1. COMPORTAMIENTO DE INDICADOR
C17: CLASIFICACIÓN DE LA MEDICIÓN | E17: 1 | H17: TIPO DE INDICADOR | J17: Eficacia | L17: META | N17: 0.75
C18: FORMULA | E18: NUMERADOR | G18: Planes cerrados*100 | L18: UNIDAD DE MEDIDA | N18: Porcentaje
E19: DENOMINADOR | G19: Planes abiertos (sobre la vigencia del 2023 hacia atrás)
C20: TENDENCIA | E20: Positiva | H20: NIVEL DE SEGREGACIÓN * | J20: Otros | L20: ESCALA
L21: Deficiente | M21: Aceptable | N21: Bueno | O21: Excelente
L22: 0% - 54,9% | M22: 55% - 64,9% | N22: 65% - 74,9% | O22: 75%- 100%
C23: ORIGEN DE DATOS NUMERADOR | E23: Base de datos seguimiento al avance de planes de mejora | H23: FRECUENCIA DE LA MEDICIÓN | J23: TRIMESTRAL | L23: FRECUENCIA DE RESULTADO | N23: ANUAL
C24: ORIGEN DE DATOS DENOMINADOR | E24: Base de datos seguimiento al avance de planes de mejora
C26: RESULTADOS
J27: ANÁLISIS DE DATOS
J28: I TRIMESTRE: Tomado como insumo el reporte de los planes de mejoramiento internos del aplicativo denominado “acciones correctivas y de mejora”, es posible evidenciar para el primer trimestre, la gestión en el cierre de los planes de mejoramiento por parte de los profesionales de la Dirección de Control Interno así: Número de planes de mejoramiento cerrados: 20, correspondiente al 21% de cumplimiento frente al 19% de meta fijada para el primer trimestre de la vigencia 2024, segregados de la siguiente manera: 8 planes de mejoramiento derivados de los ejercicios del proceso de Control Interno, 2 planes de mejoramiento derivados de las auditorías del Sistema de Gestión de la Calidad 2 planes derivados de las auditorias del sistema de gestion de Calidad en conjunto con el sistema de seguridad en el Trabajo, 1 plan derivado de auditoria del Sistema de Seguridad en el Trabajo y 7 planes de mejoramiento derivados de las auditorías del Sistema de Seguridad de la Información. II TRIMESTRE: Tomando como insumo base el reporte de los planes de mejoramiento internos que se encuentran en el aplicativo acciones correctivas y de mejora, se puede evidenciar que para el segundo trimestre de la vigencia 2024 se cerraron un total de 7 planes de mejoramiento de 76 abiertos a la fecha, discriminados de la siguinete manera: 7 planes de mejoramiento derivados de ejecicios de control interno fueron cerrados en el trimestre de la vigencia 2024, mientras que 0 planes de mejoramiento se cerraron producto de las auditorias realizadas por los Sistemas de Gestión. Lo anterior, representa un porcentaje de cumplimiento del 28% respecto de un 38% esperado. III TRIMESTRE: Tomando como insumo base el reporte de los planes de mejoramiento internos que se encuentran en el aplicativo "acciones correctivas y de mejora", se puede evidenciar que para el tercer trimestre de la vigencia 2024 se cerraron un total de 20 planes de mejoramiento de 69 abiertos a la fecha, discriminados de la siguinete manera: 5 planes de mejoramiento derivados de ejecicios de control interno, 1 plan de mejoramiento derivado de ejercicios del Sistema de Gestión de Calidad, 1 plan de mejoramiento derivado de ejercicios del Sistema de Gestión Ambiental, 7 planes de mejoramiento derivados del ejercicio de auditorias combinadas de los Sistemas de Gestión, 1 plan de mejoramiento derivado de ejercicios del Sistema de Seguridad y Salud en el Trabajo y 5 planes de mejoramiento derivados de ejercicios del Sistema de Seguridad de la Información, con lo cual, se alcanza un porcentaje de cumplimiento del 49% respecto de un 56% esperado. IV TRIMESTRE: Teniendo en cuenta lo relacionado en el reporte de planes de mejoramiento del Aplicativo "Acciones Correctivas y de Mejora" de Control Interno, se puede evidenciar que para el IV Trimestre de 2024 se cerraron un total de 12 planes de mejoramiento de 49 abiertos a la fecha, los cuales están discriminados así: 5 planes de mejoramiento deriviados de ejecicios de Control Interno, 3 planes de mejoramiento derivados de ejecicios del Sistema de Gestión de Calidad, 2 planes de mejoramiento derivados de ejercicios conjuntos entre los Sistemas Integrados de Gestión, 1 plan de mejoramiento derivado de ejercicios del Sistema de Seguridad y Salud en el Trabajo y 1 plan de mejoramiento derivado de ejercicios del Sistema de Gestión de Seguridad de la Información. De acuerdo con lo anterior, el porcentaje alcanzado para el cirre de la vigencia 2024 es del 61%, lo cual incumple con lo proyectado, ya que se esperaba un cumplimiento del 75 %. Lo anterior, se debe principalmente a que muchos de los planes que se encontraban en ejecución, requerian de mas tiempo para la finalización de sus actividades, presentando acciones que no se podían llevar a cabo en el tiempo establecido y/o fechas planteadas dentro del plan de mejoramiento, dificultando asi su respectivo cierre.
J34: ACCIÓN FORMULADA
J35: I Trimestre: 1. Seguimiento y monitoreo mensual a los profesionales de control interno frente a la gestión de los planes de mejoramiento. 2. Realizar una jornada de sensibilización trimestral a todos los procesos responsables explicando la importancia del seguimiento y cierre de los planes de mejoramiento. 3. Realizar reuniones de manera trimestral con la comisión de control interno con el propósito de mostrar el avance de seguimiento y cierre de los planes de mejoramiento. II Trimestre: 1. Seguimiento y monitoreo mensual a los profesionales de control interno frente a la gestión de los planes de mejoramiento. 2. Realizar una jornada de sensibilización trimestral a todos los procesos responsables explicando la importancia del seguimiento y cierre de los planes de mejoramiento. 3. Realizar reuniones de manera trimestral con la comisión de control interno con el propósito de mostrar el avance de seguimiento y cierre de los planes de mejoramiento. IV Trimestre: 1. Establecer mesas de trabajo con los lideres de los procesos que tienen planes de mejoramiento por cerrar y que no han tenido mayor avance, con el fin de identificar las causas y establecer soluciones efectivas para su respectivo cierre. 2. Realizar un seguimiento por parte de la Dirección de Control Interno a los profesionales de la dirección, frente al seguimiento de los planes de mejoramiento y al cumplimiento en el cierre de los mismos, de manera que se puedan identificar las causas y plantear posibles soluciones. 3. Realizar reuniones de manera trimestral con la comisión de control interno con el propósito de mostrar el avance de seguimiento y cierre de los planes de mejoramiento. 4. Se realizará seguimiento a los planes de mejoramiento que no lograron su cierre mediante documentos de trabajo interno teniendo en cuenta la ampliación de plazos y cambio de actividades en caso de ser necesario.
J41: RESPONSABLE
J42: =E14 -> Director de Control Interno
C45: PERIODO DE EVALUACIÓN
C46: MES | D46: =IF(J23="MENSUAL","ENERO",IF(J23="TRIMESTRAL","MARZO",IF(J23="SEMESTRAL","JUNIO",IF(J23="ANUAL",YEAR(TODAY()),"")))) -> MARZO | E46: =IF(J23="MENSUAL","FEBRERO",IF(J23="TRIMESTRAL","JUNIO",IF(J23="SEMESTRAL","DICIEMBRE",""))) -> JUNIO | F46: =IF(J23="MENSUAL","MARZO",IF(J23="TRIMESTRAL","SEPTIEMBRE","")) -> SEPTIEMBRE | G46: =IF(J23="MENSUAL","ABRIL",IF(J23="TRIMESTRAL","DICIEMBRE","")) -> DICIEMBRE | H46: =IF(J23="MENSUAL","MAYO","") ->  | I46: =IF(J23="MENSUAL","JUNIO","") ->  | J46: =IF(J23="MENSUAL","JULIO","") ->  | K46: =IF(J23="MENSUAL","AGOSTO","") ->  | L46: =IF(J23="MENSUAL","SEPTIEMBRE","") ->  | M46: =IF(J23="MENSUAL","OCTUBRE","") ->  | N46: =IF(J23="MENSUAL","NOVIEMBRE","") ->  | O46: =IF(J23="MENSUAL","DICIEMBRE","") -> 
C47: =G18 -> Planes cerrados*100 | D47: 20 | E47: =+D47+7 -> 27 | F47: =+E47+20 -> 47 | G47: =+F47+12 -> 59
C48: =G19 -> Planes abiertos (sobre la vigencia del 2023 hacia atrás) | D48: 96 | E48: 96 | F48: 96 | G48: 96
C49: VALOR | D49: =IFERROR(IF($E$17=1,D47/D48,IF($E$17=2,D47,"")),"") -> 0.2083333333 | E49: =IFERROR(IF($E$17=1,E47/E48,IF($E$17=2,E47,"")),"") -> 0.28125 | F49: =IFERROR(IF($E$17=1,F47/F48,IF($E$17=2,F47,"")),"") -> 0.4895833333 | G49: =IFERROR(IF($E$17=1,G47/G48,IF($E$17=2,G47,"")),"") -> 0.6145833333
C50: META PONDERADA | D50: =IF(AND(N23="ANUAL",J23="MENSUAL"),N17/12,IF(AND(N23="ANUAL",J23="TRIMESTRAL"),N17/4,IF(AND(N23="ANUAL",J23="SEMESTRAL"),N17/2,IF(AND(N23="ANUAL",J23="ANUAL"),N17,IF(AND(N23="SEMESTRAL",J23="MENSUAL"),N17/6,IF(AND(N23="SEMESTRAL",J23="TRIMESTRAL"),N17/2,IF(AND(N23="SEMESTRAL",J23="SEMESTRAL"),N17,IF(AND(N23="SEMESTRAL",J23="ANUAL"),"REVISAR FRECUENCIAS",IF(AND(N23="TRIMESTRAL",J23="MENSUAL"),N17/3,IF(AND(N23="TRIMESTRAL",J23="TRIMESTRAL"),N17,IF(AND(N23="TRIMESTRAL",J23="SEMESTRAL"),"REVISAR FRECUENCIAS",IF(AND(N23="TRIMESTRAL",J23="ANUAL"),"REVISAR FRECUENCIAS",IF(AND(N23="MENSUAL",J23="MENSUAL"),N17,IF(AND(N23="MENSUAL",J23="TRIMESTRAL"),"REVISAR FRECUENCIAS",IF(AND(N23="MENSUAL",J23="SEMESTRAL"),"REVISAR FRECUENCIAS",IF(AND(N23="MENSUAL",J23="ANUAL"),"REVISAR FRECUENCIAS","")))))))))))))))) -> 0.1875 | E50: =IF(AND(N23="ANUAL",J23="MENSUAL"),N17/12+D50,IF(AND(N23="ANUAL",J23="TRIMESTRAL"),N17/4+D50,IF(AND(N23="ANUAL",J23="SEMESTRAL"),N17/2+D50,IF(AND(N23="SEMESTRAL",J23="MENSUAL"),N17/6+D50,IF(AND(N23="SEMESTRAL",J23="TRIMESTRAL"),N17/2+D50,IF(AND(N23="SEMESTRAL",J23="SEMESTRAL"),N17,IF(AND(N23="TRIMESTRAL",J23="MENSUAL"),N17/3+D50,IF(AND(N23="TRIMESTRAL",J23="TRIMESTRAL"),N17,IF(AND(N23="MENSUAL",J23="MENSUAL"),N17,""))))))))) -> 0.375 | F50: =IF(AND(N23="ANUAL",J23="MENSUAL"),N17/12+E50,IF(AND(N23="ANUAL",J23="TRIMESTRAL"),N17/4+E50,IF(AND(N23="SEMESTRAL",J23="MENSUAL"),N17/6+E50,IF(AND(N23="SEMESTRAL",J23="TRIMESTRAL"),N17/2,IF(AND(N23="TRIMESTRAL",J23="MENSUAL"),N17/3+E50,IF(AND(N23="TRIMESTRAL",J23="TRIMESTRAL"),N17,IF(AND(N23="MENSUAL",J23="MENSUAL"),N17,""))))))) -> 0.5625 | G50: =IF(AND(N23="ANUAL",J23="MENSUAL"),N17/12+F50,IF(AND(N23="ANUAL",J23="TRIMESTRAL"),N17/4+F50,IF(AND(N23="SEMESTRAL",J23="MENSUAL"),N17/6+F50,IF(AND(N23="SEMESTRAL",J23="TRIMESTRAL"),N17/2+F50,IF(AND(N23="TRIMESTRAL",J23="MENSUAL"),N17/3,IF(AND(N23="TRIMESTRAL",J23="TRIMESTRAL"),N17,IF(AND(N23="MENSUAL",J23="MENSUAL"),N17,""))))))) -> 0.75 | H50: =IF(AND($N$23="ANUAL",$J$23="MENSUAL"),$N$17/12+G50,IF(AND(N23="SEMESTRAL",J23="MENSUAL"),N17/6+G50,IF(AND(N23="TRIMESTRAL",J23="MENSUAL"),N17/3+G50,IF(AND(N23="MENSUAL",J23="MENSUAL"),N17,"")))) ->  | I50: =IF(AND($N$23="ANUAL",$J$23="MENSUAL"),$N$17/12+H50,IF(AND(N23="SEMESTRAL",J23="MENSUAL"),N17/6+H50,IF(AND(N23="TRIMESTRAL",J23="MENSUAL"),N17/3+H50,IF(AND(N23="MENSUAL",J23="MENSUAL"),N17,"")))) ->  | J50: =IF(AND($N$23="ANUAL",$J$23="MENSUAL"),$N$17/12+I50,IF(AND(N23="SEMESTRAL",J23="MENSUAL"),N17/6,IF(AND(N23="TRIMESTRAL",J23="MENSUAL"),N17/3,IF(AND(N23="MENSUAL",J23="MENSUAL"),N17,"")))) ->  | K50: =IF(AND($N$23="ANUAL",$J$23="MENSUAL"),$N$17/12+J50,IF(AND(N23="SEMESTRAL",J23="MENSUAL"),N17/6+J50,IF(AND(N23="TRIMESTRAL",J23="MENSUAL"),N17/3+J50,IF(AND(N23="MENSUAL",J23="MENSUAL"),N17,"")))) ->  | L50: =IF(AND($N$23="ANUAL",$J$23="MENSUAL"),$N$17/12+K50,IF(AND(N23="SEMESTRAL",J23="MENSUAL"),N17/6+K50,IF(AND(N23="TRIMESTRAL",J23="MENSUAL"),N17/3+K50,IF(AND(N23="MENSUAL",J23="MENSUAL"),N17,"")))) ->  | M50: =IF(AND($N$23="ANUAL",$J$23="MENSUAL"),$N$17/12+L50,IF(AND(N23="SEMESTRAL",J23="MENSUAL"),N17/6+L50,IF(AND(N23="TRIMESTRAL",J23="MENSUAL"),N17/3,IF(AND(N23="MENSUAL",J23="MENSUAL"),N17,"")))) ->  | N50: =IF(AND($N$23="ANUAL",$J$23="MENSUAL"),$N$17/12+M50,IF(AND(N23="SEMESTRAL",J23="MENSUAL"),N17/6+M50,IF(AND(N23="TRIMESTRAL",J23="MENSUAL"),N17/3+M50,IF(AND(N23="MENSUAL",J23="MENSUAL"),N17,"")))) ->  | O50: =IF(AND($N$23="ANUAL",$J$23="MENSUAL"),$N$17/12+N50,IF(AND(N23="SEMESTRAL",J23="MENSUAL"),N17/6+N50,IF(AND(N23="TRIMESTRAL",J23="MENSUAL"),N17/3+N50,IF(AND(N23="MENSUAL",J23="MENSUAL"),N17,"")))) -> 
C52: NIVEL DE SEGREGACIÓN *
C53: UNIDAD SEGREGADA (Ej. Facultad, Programa Académico, Área) | G53: RESULTADO | K53: ANALISIS DE DATOS SEGREGADO
C54: Gestión Control Interno | G54: =5/25 -> 0.2 | K54: De los 49 planes de mejoramiento abiertos (sobre la vigencia del 2023 hacia atrás), 25 corresponden a los ejercicios derivados de Control Interno. Para el cuarto de la vigencia, se cierran 5 planes de mejoramiento.
C55: Sistema de Gestión de la Calidad | G55: =3/5 -> 0.6 | K55: De los 49 planes de mejoramiento abiertos (sobre la vigencia del 2023 hacia atrás), 5 corresponden a los ejercicios derivados del Sistema de Gestión de la Calidad. Para el cuarto trimestre de la vigencia, se cierran 3 planes de mejoramiento.
C56: Sistema de Gestión Ambiental | G56: =0/1 -> 0 | K56: De los 49 planes de mejoramiento abiertos (sobre la vigencia del 2023 hacia atrás), 1 corresponde a los ejercicios derivados del Sistema de Gestión Ambiental. Para el cuarto trimestre de la vigencia, se cierran 0 planes de mejoramiento.
C57: Auditorías combinadas de las Sistemas de Gestión | G57: =2/10 -> 0.2 | K57: De los 49 planes de mejoramiento abiertos (sobre la vigencia del 2023 hacia atrás), 10 corresponden a los ejercicios derivados de Auditorias Combinadas de los Sistemas de Gestión. Para el cuarto trimestre de la vigencia, se cierran 2 planes de mejoramiento.
C58: Sistema de Gestión de la Seguridad y Salud en el Trabajo | G58: =1/1 -> 1 | K58: De los 49 planes de mejoramiento abiertos (sobre la vigencia del 2023 hacia atrás), 1 corresponden a los ejercicios derivados del Sistema de Gestión de Seguridad y Salud en el Trabajo. Para el cuarto trimestre de la vigencia, se cierra 1 plan de mejoramiento.
C59: Sistema de Gestión de Seguridad de la Información | G59: =1/7 -> 0.1428571429 | K59: De los 49 planes de mejoramiento abiertos (sobre la vigencia del 2023 hacia atrás),7 corresponden a los ejercicios derivados del Sistema de Gestión de la Seguridad de la Información. Para el cuarto trimestre de la vigencia, se cierra 1 plan de mejoramiento.
C60: NIVEL DE SEGREGACIÓN *
C61: UNIDAD SEGREGADA (Ej. Facultad, Programa Académico, Área) | G61: RESULTADO | K61: ANALISIS DE DATOS SEGREGADO
C62: Gestión Control Interno | G62: 0 | K62: En el cuarto trimestre se cerraron 0 de 2 plan de mejoramiento abierto (sobre la vigencia del 2023 hacia atrás)
C63: Gestión Autoevaluación y Acreditación | G63: N/A | K63: N/A
C64: Gestión Comunicaciones | G64: N/A | K64: N/A
C65: Gestión Planeación Institucional | G65: =0/5 -> 0 | K65: En el cuarto trimestre se cerraron 0 de los 5 planes de mejoramiento abiertos (sobre la vigencia del 2023 hacia atrás).
C66: Gestión de Proyectos Especiales y Relaciones Interinstitucionales | G66: =0/1 -> 0 | K66: En el cuarto trimestre se cerraron 0 de 1 plan de mejoramiento abierto (sobre la vigencia del 2023 hacia atrás).
C67: Gestión Admisiones y Registro | G67: =2/2 -> 1 | K67: En el cuarto trimestre se cerraron 2 de los 2 planes de mejoramiento abiertos (sobre la vigencia del 2023 hacia atrás).
C68: Gestión Bienestar Universitario | G68: =0/1 -> 0 | K68: En el cuarto trimestre se cerraron 0 de los 1 planes de mejoramiento abiertos (sobre la vigencia del 2023 hacia atrás).
C69: Gestión Ciencia, Tecnología e Innovación | G69: =0/3 -> 0 | K69: En el cuarto trimestre se cerraron 0 de los 3 planes de mejoramiento abiertos (sobre la vigencia del 2023 hacia atrás).
C70: Gestión Dialogando con el Mundo | G70: =0/5 -> 0 | K70: En el cuarto trimestre se cerraron 0 de los 5 planes de mejoramiento abiertos (sobre la vigencia del 2023 hacia atrás).
C71: Gestión Formación y Aprendizaje | G71: =5/9 -> 0.5555555556 | K71: En el cuarto trimestre se cerraron 5 de los 9 planes de mejoramiento abiertos (sobre la vigencia del 2023 hacia atrás).
C72: Gestión Graduados | G72: N/A | K72: N/A
C73: Gestión Interacción Social Universitaria | G73: N/A | K73: N/A
C74: Gestión Apoyo Académico | G74: =0/1 -> 0 | K74: En el cuarto trimestre se cerraron 0 de los 1 planes de mejoramiento abiertos (sobre la vigencia del 2023 hacia atrás).
C75: Gestión Bienes y Servicios | G75: =1/4 -> 0.25 | K75: En el cuarto trimestre se cerraron 1 de los 4 planes de mejoramiento abiertos (sobre la vigencia del 2023 hacia atrás).
C76: Gestión Documental | G76: =0/2 -> 0 | K76: En el cuarto trimestre se cerraron 0 de los 2 planes de mejoramiento abiertos (sobre la vigencia del 2023 hacia atrás).
C77: Gestión Financiera | G77: =1/3 -> 0.3333333333 | K77: En el cuarto trimestre se cerraron 1 de los 3 planes de mejoramiento abiertos (sobre la vigencia del 2023 hacia atrás).
C78: Gestión Jurídica | G78: N/A | K78: N/A
C79: Gestión Sistemas Integrados | G79: =1/4 -> 0.25 | K79: En el cuarto trimestre se cerraron 1 de los 4 planes de mejoramiento abiertos (sobre la vigencia del 2023 hacia atrás).
C80: Gestión Sistemas y Tecnologías | G80: =1/3 -> 0.3333333333 | K80: En el cuarto trimestre se cerraron 1 de los 3 planes de mejoramiento abiertos (sobre la vigencia del 2023 hacia atrás).
C81: Gestión Talento Humano | G81: =0/2 -> 0 | K81: En el cuarto trimestre se cerraron 0 de los 2 planes de mejoramiento abiertos (sobre la vigencia del 2023 hacia atrás).
C82: Gestión Control Disciplinario | G82: =0/1 -> 0 | K82: En el cuarto trimestre se cerraron 0 de 1 plan de mejoramiento abierto (sobre la vigencia del 2023 hacia atrás).
C83: Gestión Servicio de Atención al Ciudadano | G83: =1/1 -> 1 | K83: En el cuarto trimestre se cerraron 1 de los 1 plan de mejoramiento abiertos (sobre la vigencia del 2023 hacia atrás).
G84: Direccionamiento Estratégico
F85: Estratégico | G85: Planeación Institucional | H85: Por Unidad Regional | I85: Positiva | J85: Eficacia
F86: Misional | G86: Proyectos Especiales y Relaciones Interinstitucionales | H86: Por Facultad | I86: Negativa | J86: Eficiencia
F87: Apoyo | G87: Sistemas Integrados | H87: Por Programa Académico | J87: Acreditación
F88: Seguimiento, Medición, Análisis y Evaluación | G88: Autoevaluación y Acreditación | H88: Por área
G89: Comunicaciones | H89: Por Laboratorio
G90: Formación y Aprendizaje | H90: Otros
G91: Ciencia, Tecnología e Innovación | H91: No Aplica
G92: Interacción Social Universitaria
G93: Bienestar Universitario
G94: Admisiones y Registro
G95: Graduados
G96: Dialogando con el Mundo
G97: Talento Humano
G98: Jurídica
G99: Financiera
G100: Sistemas y Tecnología
G101: Bienes y Servicios
G102: Documental
G103: Apoyo Académico
G104: Control Interno
G105: Control Disciplinario
G106: Servicio de Atención al Ciudadano

Sheet INS 5
B2: REGRESAR
E5: MACROPROCESO ESTRATÉGICO | M5: CÓDIGO: ESGr027
E6: PROCESO GESTIÓN SISTEMAS INTEGRADOS - CALIDAD | M6: VERSIÓN: 8
E7: MATRIZ DE MEDICIÓN Y SEGUIMIENTO A LOS PROCESOS DE GESTIÓN | M7: VIGENCIA: 2023-07-28
M8: PÁGINA: 3 de 6
C10: FICHA DE INDICADOR
C12: MACROPROCESO | E12: Seguimiento, Medición, Análisis y Evaluación | I12: NOMBRE DEL INDICADOR | K12: Eficacia en el Control de Riesgos
C13: PROCESO GESTIÓN | E13: Control Interno
C14: RESPONSABLE DE MEDICIÓN | E14: Director de Control Interno
C16: 1. COMPORTAMIENTO DE INDICADOR
C17: CLASIFICACIÓN DE LA MEDICIÓN | E17: 1 | H17: TIPO DE INDICADOR | J17: Eficacia | L17: META | N17: 0.8
C18: FORMULA | E18: NUMERADOR | G18: No. de riesgos (A - E) residuales operativos institucionales controlados*100 | L18: UNIDAD DE MEDIDA | N18: Porcentaje
E19: DENOMINADOR | G19: Total de riesgos Altos y Extremos residuales operativos institucionales
C20: TENDENCIA | E20: Positiva | H20: NIVEL DE SEGREGACIÓN * | J20: No Aplica | L20: ESCALA
L21: Deficiente | M21: Aceptable | N21: Bueno | O21: Excelente
L22: 0%-60,9% | M22: 61%-69,9% | N22: 70%-79,9% | O22: >=80%
C23: ORIGEN DE DATOS NUMERADOR | E23: Matrices de riesgo | H23: FRECUENCIA DE LA MEDICIÓN | J23: SEMESTRAL | L23: FRECUENCIA DE RESULTADO | N23: SEMESTRAL
C24: ORIGEN DE DATOS DENOMINADOR | E24: Matrices de riesgo
C26: RESULTADOS
J27: ANÁLISIS DE DATOS
J28: Para el primer semestre de la vigencia 2024 se tiene que del total de 40 riesgos altos y extremos se pudo controlar un 80%, es decir 32 riesgos. Por otro lado, se identifican 5 riegos adicionales a los ya establecidos dentro de las matrices de cada proceso. A continuación, se describen los pósibles riesgos identificados. Interacción Social Universitaria: - Posible incumplimiento en la rendición de la cuenta anual con el Formato F12A-CDC en suficiencia y calidad de la información rendida. Bienestar Universitario (MBU) / Sistema de Atención al Ciudadano: -Se validaron dentro de los derechos de petición el identificador 16170 a los cuales se les dio respuesta en un término mayor a los 31 días hábiles, lo que llama la atención teniendo en cuenta que para este tipo de solicitudes el tiempo máximo de respuesta es de 15 días hábiles según el procedimiento SACP01_V20 “atención a peticiones, quejas y reclamos” y ley 1755 del 2015 en su art. 14, se verifica en el aplicativo SAIC en el campo “tiempo extemporáneo” el cual no fue activado y adicionalmente las alertas realizadas desde el correo quejasyreclamos@ucundinamarca.edu.co a el área competente para dar respuesta a las PQRS generando un riesgo en la oportunidad de entrega de la respuesta al peticionario. Proyectos Especiales y Relaciones Institucionales (EPR): - Se recomienda incluir como riesgo del proceso lo relacionado con la no suscripción de documentos por parte del líder del proceso en documentos requeridos. Dialogando Con el Mundo (MDM): - Se requiere revalorar la probabilidad e impacto de los riesgos identificados teniendo en cuenta el impacto que esta área tiene a nivel de acreditación de programas e institucional. Lo anterior se afirma desde los niveles de calificación obtenidos en los diferentes planes de mejoramiento de condiciones iniciales de acreditación y desde el plan de mejoramiento de diagnóstico académico Dialogando con el mundo que no supero el 89% quedando pendiente la reglamentación de dialogando con el mundo y la generación de convenios en el proceso de doble titulación. Oficina de Graduados(MGD): Se evidencia una posible materialización del riesgo en el plan de mejoramiento diagnóstico académico de la oficina de graduados debido a la no presentación de evidencias en el segundo seguimiento, actualmente cuenta con un 75% de avance el cual se hará seguimiento desde la Comisión de Acreditación.
J34: ACCIÓN FORMULADA
J35: Dentro de los ejercicios de auditoría de los diferentes procesos de la Universidad de Cundinamarca determinar la revisión de la matriz de riesgos y efectividad en los controles. II SEMESTRE: Pendiente de medición.
J41: RESPONSABLE
J42: =E14 -> Director de Control Interno
C45: PERIODO DE EVALUACIÓN
C46: MES | D46: =IF(J23="MENSUAL","ENERO",IF(J23="TRIMESTRAL","MARZO",IF(J23="SEMESTRAL","JUNIO",IF(J23="ANUAL",YEAR(TODAY()),"")))) -> JUNIO | E46: =IF(J23="MENSUAL","FEBRERO",IF(J23="TRIMESTRAL","JUNIO",IF(J23="SEMESTRAL","DICIEMBRE",""))) -> DICIEMBRE
C47: =G18 -> No. de riesgos (A - E) residuales operativos institucionales controlados*100 | D47: 32
C48: =G19 -> Total de riesgos Altos y Extremos residuales operativos institucionales | D48: 40
C49: VALOR | D49: =IFERROR(IF($E$17=1,D47/D48,IF($E$17=2,D47,"")),"") -> 0.8
C50: META PONDERADA | D50: =IF(AND(N23="ANUAL",J23="MENSUAL"),N17/12,IF(AND(N23="ANUAL",J23="TRIMESTRAL"),N17/4,IF(AND(N23="ANUAL",J23="SEMESTRAL"),N17/2,IF(AND(N23="ANUAL",J23="ANUAL"),N17,IF(AND(N23="SEMESTRAL",J23="MENSUAL"),N17/6,IF(AND(N23="SEMESTRAL",J23="TRIMESTRAL"),N17/2,IF(AND(N23="SEMESTRAL",J23="SEMESTRAL"),N17,IF(AND(N23="SEMESTRAL",J23="ANUAL"),"REVISAR FRECUENCIAS",IF(AND(N23="TRIMESTRAL",J23="MENSUAL"),N17/3,IF(AND(N23="TRIMESTRAL",J23="TRIMESTRAL"),N17,IF(AND(N23="TRIMESTRAL",J23="SEMESTRAL"),"REVISAR FRECUENCIAS",IF(AND(N23="TRIMESTRAL",J23="ANUAL"),"REVISAR FRECUENCIAS",IF(AND(N23="MENSUAL",J23="MENSUAL"),N17,IF(AND(N23="MENSUAL",J23="TRIMESTRAL"),"REVISAR FRECUENCIAS",IF(AND(N23="MENSUAL",J23="SEMESTRAL"),"REVISAR FRECUENCIAS",IF(AND(N23="MENSUAL",J23="ANUAL"),"REVISAR FRECUENCIAS","")))))))))))))))) -> 0.8 | E50: =IF(AND(N23="ANUAL",J23="MENSUAL"),N17/12+D50,IF(AND(N23="ANUAL",J23="TRIMESTRAL"),N17/4+D50,IF(AND(N23="ANUAL",J23="SEMESTRAL"),N17/2+D50,IF(AND(N23="SEMESTRAL",J23="MENSUAL"),N17/6+D50,IF(AND(N23="SEMESTRAL",J23="TRIMESTRAL"),N17/2+D50,IF(AND(N23="SEMESTRAL",J23="SEMESTRAL"),N17,IF(AND(N23="TRIMESTRAL",J23="MENSUAL"),N17/3+D50,IF(AND(N23="TRIMESTRAL",J23="TRIMESTRAL"),N17,IF(AND(N23="MENSUAL",J23="MENSUAL"),N17,""))))))))) -> 0.8
C52: NIVEL DE SEGREGACIÓN *
C53: UNIDAD SEGREGADA (Ej. Facultad, Programa Académico, Área) | G53: RESULTADO | K53: ANALISIS DE DATOS SEGREGADO
G72: Estratégico | J72: Eficacia
G73: Misional | J73: Eficiencia
G74: Apoyo | J74: Acreditación
G75: Seguimiento, Medición, Análisis y Evaluación | J75: Positiva
G76: Direccionamiento Estratégico | J76: Negativa
G77: Planeación Institucional | J77: Por Unidad Regional
G78: Proyectos Especiales y Relaciones Interinstitucionales | J78: Por Facultad
G79: Sistemas Integrados | J79: Por Programa Académico
G80: Autoevaluación y Acreditación | J80: Por área
G81: Comunicaciones | J81: Por Laboratorio
G82: Formación y Aprendizaje | J82: Otros
G83: Ciencia, Tecnología e Innovación | J83: No Aplica
G84: Interacción Social Universitaria
G85: Bienestar Universitario
G86: Admisiones y Registro
G87: Graduados
G88: Dialogando con el Mundo
G89: Talento Humano
G90: Jurídica
G91: Financiera
G92: Sistemas y Tecnología
G93: Bienes y Servicios
G94: Documental
G95: Apoyo Académico
G96: Control Interno
G97: Control Disciplinario
G98: Servicio de Atención al Ciudadano

Sheet SCI-7 inactivo (hidden)
B2: REGRESAR
E5: MACROPROCESO ESTRATÉGICO | M5: CÓDIGO: ESGr027
E6: PROCESO GESTIÓN SISTEMAS INTEGRADOS | M6: VERSIÓN: 7
E7: MATRIZ DE MEDICIÓN Y SEGUIMIENTO A LOS PROCESOS DE GESTIÓN | M7: VIGENCIA: 2020-03-20
M8: PÁGINA: 1 de 1
C10: FICHA DE INDICADOR
C12: MACROPROCESO | E12: Seguimiento, Medición, Análisis y Evaluación | I12: NOMBRE DEL INDICADOR | K12: Eficacia en el cierre de planes de mejoramiento
C13: PROCESO GESTIÓN | E13: Control Interno
C14: RESPONSABLE DE MEDICIÓN | E14: Director de Control Interno
C16: 1. COMPORTAMIENTO DE INDICADOR
C17: CLASIFICACIÓN DE LA MEDICIÓN | E17: 2 | H17: TIPO DE INDICADOR | J17: Eficacia | L17: META | N17: 60
C18: FORMULA | E18: Número de planes de mejoramiento cerrados | L18: UNIDAD DE MEDIDA | N18: Número Absoluto
C20: TENDENCIA | E20: Positiva | H20: NIVEL DE SEGREGACIÓN * | J20: No Aplica | L20: ESCALA
L21: Deficiente | M21: Aceptable | N21: Bueno | O21: Excelente
L22: 0-10 | M22: 11.15 | N22: 16-20 | O22: 21-30
C23: ORIGEN DE DATOS | E23: Base de datos seguimiento al avance de planes de mejoramiento cerrados | H23: FRECUENCIA DE LA MEDICIÓN | J23: Semestral | L23: FRECUENCIA DE RESULTADO | N23: Anual
C26: RESULTADOS
J27: ANÁLISIS DE DATOS Los datos indican un crecimiento en los acompañamientos entre el primer trimestre y el segundo trimestre de mas del 100%, por la contratación del personal de la oficina En el tercer trimestre se muestra un decrecimiento con respecto al periodo anterior por las vacaciones a mitad de año, las personas se reintegraron entre julio y agosto.
J34: ACCIÓN FORMULADA Reformular la meta para el próximo año dependiendo de los recursos asignados.
J40: RESPONSABLE
J41: =E14 -> Director de Control Interno
C44: PERIODO DE EVALUACIÓN
C45: MES | D45: =IF(J23="MENSUAL","ENERO",IF(J23="TRIMESTRAL","MARZO",IF(J23="SEMESTRAL","JUNIO",IF(J23="ANUAL",YEAR(TODAY()),"")))) -> JUNIO | E45: =IF(J23="MENSUAL","FEBRERO",IF(J23="TRIMESTRAL","JUNIO",IF(J23="SEMESTRAL","DICIEMBRE",""))) -> DICIEMBRE | F45: =IF(J23="MENSUAL","MARZO",IF(J23="TRIMESTRAL","SEPTIEMBRE","")) ->  | G45: =IF(J23="MENSUAL","ABRIL",IF(J23="TRIMESTRAL","DICIEMBRE","")) ->  | H45: =IF(J23="MENSUAL","MAYO","") ->  | I45: =IF(J23="MENSUAL","JUNIO","") ->  | J45: =IF(J23="MENSUAL","JULIO","") ->  | K45: =IF(J23="MENSUAL","AGOSTO","") ->  | L45: =IF(J23="MENSUAL","SEPTIEMBRE","") ->  | M45: =IF(J23="MENSUAL","OCTUBRE","") ->  | N45: =IF(J23="MENSUAL","NOVIEMBRE","") ->  | O45: =IF(J23="MENSUAL","DICIEMBRE","") -> 
C46: =+E18 -> Número de planes de mejoramiento cerrados
C47: =G19 -> 0
C48: VALOR | D48: =+D46 -> 0 | E48: =+D48+E46 -> 0 | F48: =IFERROR(IF($E$17=1,F46/F47,IF($E$17=2,F46,"")),"") -> 0 | G48: 0 | H48: 0 | I48: 0 | J48: 0 | K48: 0 | L48: 0 | M48: 0 | N48: 0 | O48: 0
C49: META PONDERADA | D49: =IF(AND(N23="ANUAL",J23="MENSUAL"),N17/12,IF(AND(N23="ANUAL",J23="TRIMESTRAL"),N17/4,IF(AND(N23="ANUAL",J23="SEMESTRAL"),N17/2,IF(AND(N23="ANUAL",J23="ANUAL"),N17,IF(AND(N23="SEMESTRAL",J23="MENSUAL"),N17/6,IF(AND(N23="SEMESTRAL",J23="TRIMESTRAL"),N17/2,IF(AND(N23="SEMESTRAL",J23="SEMESTRAL"),N17,IF(AND(N23="SEMESTRAL",J23="ANUAL"),"REVISAR FRECUENCIAS",IF(AND(N23="TRIMESTRAL",J23="MENSUAL"),N17/3,IF(AND(N23="TRIMESTRAL",J23="TRIMESTRAL"),N17,IF(AND(N23="TRIMESTRAL",J23="SEMESTRAL"),"REVISAR FRECUENCIAS",IF(AND(N23="TRIMESTRAL",J23="ANUAL"),"REVISAR FRECUENCIAS",IF(AND(N23="MENSUAL",J23="MENSUAL"),N17,IF(AND(N23="MENSUAL",J23="TRIMESTRAL"),"REVISAR FRECUENCIAS",IF(AND(N23="MENSUAL",J23="SEMESTRAL"),"REVISAR FRECUENCIAS",IF(AND(N23="MENSUAL",J23="ANUAL"),"REVISAR FRECUENCIAS","")))))))))))))))) -> 30 | E49: =IF(AND(N23="ANUAL",J23="MENSUAL"),N17/12,IF(AND(N23="ANUAL",J23="TRIMESTRAL"),N17/4,IF(AND(N23="ANUAL",J23="SEMESTRAL"),N17/2,IF(AND(N23="ANUAL",J23="ANUAL"),N17,IF(AND(N23="SEMESTRAL",J23="MENSUAL"),N17/6,IF(AND(N23="SEMESTRAL",J23="TRIMESTRAL"),N17/2,IF(AND(N23="SEMESTRAL",J23="SEMESTRAL"),N17,IF(AND(N23="SEMESTRAL",J23="ANUAL"),"REVISAR FRECUENCIAS",IF(AND(N23="TRIMESTRAL",J23="MENSUAL"),N17/3,IF(AND(N23="TRIMESTRAL",J23="TRIMESTRAL"),N17,IF(AND(N23="TRIMESTRAL",J23="SEMESTRAL"),"REVISAR FRECUENCIAS",IF(AND(N23="TRIMESTRAL",J23="ANUAL"),"REVISAR FRECUENCIAS",IF(AND(N23="MENSUAL",J23="MENSUAL"),N17,IF(AND(N23="MENSUAL",J23="TRIMESTRAL"),"REVISAR FRECUENCIAS",IF(AND(N23="MENSUAL",J23="SEMESTRAL"),"REVISAR FRECUENCIAS",IF(AND(N23="MENSUAL",J23="ANUAL"),"REVISAR FRECUENCIAS",""))))))))))))))))+D49 -> 60 | F49: =IF(AND(N23="ANUAL",J23="MENSUAL"),N17/12+E49,IF(AND(N23="ANUAL",J23="TRIMESTRAL"),N17/4+E49,IF(AND(N23="SEMESTRAL",J23="MENSUAL"),N17/6+E49,IF(AND(N23="SEMESTRAL",J23="TRIMESTRAL"),N17/2,IF(AND(N23="TRIMESTRAL",J23="MENSUAL"),N17/3+E49,IF(AND(N23="TRIMESTRAL",J23="TRIMESTRAL"),N17,IF(AND(N23="MENSUAL",J23="MENSUAL"),N17,""))))))) ->  | G49: =IF(AND(N23="ANUAL",J23="MENSUAL"),N17/12+F49,IF(AND(N23="ANUAL",J23="TRIMESTRAL"),N17/4+F49,IF(AND(N23="SEMESTRAL",J23="MENSUAL"),N17/6+F49,IF(AND(N23="SEMESTRAL",J23="TRIMESTRAL"),N17/2+F49,IF(AND(N23="TRIMESTRAL",J23="MENSUAL"),N17/3,IF(AND(N23="TRIMESTRAL",J23="TRIMESTRAL"),N17,IF(AND(N23="MENSUAL",J23="MENSUAL"),N17,""))))))) ->  | H49: =IF(AND($N$23="ANUAL",$J$23="MENSUAL"),$N$17/12+G49,IF(AND(N23="SEMESTRAL",J23="MENSUAL"),N17/6+G49,IF(AND(N23="TRIMESTRAL",J23="MENSUAL"),N17/3+G49,IF(AND(N23="MENSUAL",J23="MENSUAL"),N17,"")))) ->  | I49: =IF(AND($N$23="ANUAL",$J$23="MENSUAL"),$N$17/12+H49,IF(AND(N23="SEMESTRAL",J23="MENSUAL"),N17/6+H49,IF(AND(N23="TRIMESTRAL",J23="MENSUAL"),N17/3+H49,IF(AND(N23="MENSUAL",J23="MENSUAL"),N17,"")))) ->  | J49: =IF(AND($N$23="ANUAL",$J$23="MENSUAL"),$N$17/12+I49,IF(AND(N23="SEMESTRAL",J23="MENSUAL"),N17/6,IF(AND(N23="TRIMESTRAL",J23="MENSUAL"),N17/3,IF(AND(N23="MENSUAL",J23="MENSUAL"),N17,"")))) ->  | K49: =IF(AND($N$23="ANUAL",$J$23="MENSUAL"),$N$17/12+J49,IF(AND(N23="SEMESTRAL",J23="MENSUAL"),N17/6+J49,IF(AND(N23="TRIMESTRAL",J23="MENSUAL"),N17/3+J49,IF(AND(N23="MENSUAL",J23="MENSUAL"),N17,"")))) ->  | L49: =IF(AND($N$23="ANUAL",$J$23="MENSUAL"),$N$17/12+K49,IF(AND(N23="SEMESTRAL",J23="MENSUAL"),N17/6+K49,IF(AND(N23="TRIMESTRAL",J23="MENSUAL"),N17/3+K49,IF(AND(N23="MENSUAL",J23="MENSUAL"),N17,"")))) ->  | M49: =IF(AND($N$23="ANUAL",$J$23="MENSUAL"),$N$17/12+L49,IF(AND(N23="SEMESTRAL",J23="MENSUAL"),N17/6+L49,IF(AND(N23="TRIMESTRAL",J23="MENSUAL"),N17/3,IF(AND(N23="MENSUAL",J23="MENSUAL"),N17,"")))) ->  | N49: =IF(AND($N$23="ANUAL",$J$23="MENSUAL"),$N$17/12+M49,IF(AND(N23="SEMESTRAL",J23="MENSUAL"),N17/6+M49,IF(AND(N23="TRIMESTRAL",J23="MENSUAL"),N17/3+M49,IF(AND(N23="MENSUAL",J23="MENSUAL"),N17,"")))) ->  | O49: =IF(AND($N$23="ANUAL",$J$23="MENSUAL"),$N$17/12+N49,IF(AND(N23="SEMESTRAL",J23="MENSUAL"),N17/6+N49,IF(AND(N23="TRIMESTRAL",J23="MENSUAL"),N17/3+N49,IF(AND(N23="MENSUAL",J23="MENSUAL"),N17,"")))) -> 
C51: NIVEL DE SEGREGACIÓN *
C52: UNIDAD SEGREGADA (Ej. Facultad, Programa Académico, Área) | G52: RESULTADO | K52: ANÁLISIS DE DATOS SEGREGADO
G81: Autoevaluación y Acreditación | J81: Por área
G82: Comunicaciones | J82: Por Laboratorio
G83: Formación y Aprendizaje | J83: Otros
G84: Ciencia, Tecnología e Innovación | J84: No Aplica
G85: Interacción Social Universitaria
G86: Bienestar Universitario
G87: Admisiones y Registro
G88: Graduados
G89: Dialogando con el Mundo
G90: Talento Humano
G91: Jurídica
G92: Financiera
G93: Sistemas y Tecnología
G94: Bienes y Servicios
G95: Documental
G96: Apoyo Académico
G97: Control Interno
G98: Control Disciplinario
G99: Servicio de Atención al Ciudadano

Sheet SCI-6 Inactivo (hidden)
B2: REGRESAR
E5: MACROPROCESO ESTRATÉGICO | M5: CÓDIGO: ESGr027
E6: PROCESO GESTIÓN SISTEMAS INTEGRADOS - CALIDAD | M6: VERSIÓN: 8
E7: MATRIZ DE MEDICIÓN Y SEGUIMIENTO A LOS PROCESOS DE GESTIÓN | M7: VIGENCIA: 2023-07-28
M8: PÁGINA: 4 de 6
C10: FICHA DE INDICADOR
C12: MACROPROCESO | E12: Seguimiento, Medición, Análisis y Evaluación | I12: NOMBRE DEL INDICADOR | K12: Oportunidad en la entrega de pre- informes de auditoria
C13: PROCESO GESTIÓN | E13: Control Interno
C14: RESPONSABLE DE MEDICIÓN | E14: Director de Control Interno
C16: 1. COMPORTAMIENTO DE INDICADOR
C17: CLASIFICACIÓN DE LA MEDICIÓN | E17: 1 | H17: TIPO DE INDICADOR | J17: Eficacia | L17: META | N17: 0.9
C18: FORMULA | E18: NUMERADOR | G18: Pre-Informes de auditoría entregados a tiempo*100 | L18: UNIDAD DE MEDIDA | N18: Porcentaje
E19: DENOMINADOR | G19: Total Pre- informes de procesos auditados
C20: TENDENCIA | E20: Positiva | H20: NIVEL DE SEGREGACIÓN * | J20: No Aplica | L20: ESCALA
L21: Deficiente | M21: Aceptable | N21: Bueno | O21: Excelente
L22: 0% - 59,9% | M22: 60% - 79,9% | N22: 80% - 89,9% | O22: 90% - 100%
C23: ORIGEN DE DATOS NUMERADOR | E23: Base de indicadores Control Interno | H23: FRECUENCIA DE LA MEDICIÓN | J23: SEMESTRAL | L23: FRECUENCIA DE RESULTADO | N23: SEMESTRAL
C24: ORIGEN DE DATOS DENOMINADOR | E24: Base de indicadores Control Interno
C26: RESULTADOS
J27: ANÁLISIS DE DATOS
J34: ACCIÓN FORMULADA
J41: RESPONSABLE
J42: =E14 -> Director de Control Interno
C45: PERIODO DE EVALUACIÓN
C46: MES | D46: =IF(J23="MENSUAL","ENERO",IF(J23="TRIMESTRAL","MARZO",IF(J23="SEMESTRAL","JUNIO",IF(J23="ANUAL",YEAR(TODAY()),"")))) -> JUNIO | E46: =IF(J23="MENSUAL","FEBRERO",IF(J23="TRIMESTRAL","JUNIO",IF(J23="SEMESTRAL","DICIEMBRE",""))) -> DICIEMBRE | F46: =IF(J23="MENSUAL","MARZO",IF(J23="TRIMESTRAL","SEPTIEMBRE","")) ->  | G46: =IF(J23="MENSUAL","ABRIL",IF(J23="TRIMESTRAL","DICIEMBRE","")) ->  | H46: =IF(J23="MENSUAL","MAYO","") ->  | I46: =IF(J23="MENSUAL","JUNIO","") ->  | J46: =IF(J23="MENSUAL","JULIO","") ->  | K46: =IF(J23="MENSUAL","AGOSTO","") ->  | L46: =IF(J23="MENSUAL","SEPTIEMBRE","") ->  | M46: =IF(J23="MENSUAL","OCTUBRE","") ->  | N46: =IF(J23="MENSUAL","NOVIEMBRE","") ->  | O46: =IF(J23="MENSUAL","DICIEMBRE","") -> 
C47: =G18 -> Pre-Informes de auditoría entregados a tiempo*100
C48: =G19 -> Total Pre- informes de procesos auditados
C49: VALOR | D49: =IFERROR(IF($E$17=1,D47/D48,IF($E$17=2,D47,"")),"") ->  | E49: =IFERROR(IF($E$17=1,E47/E48,IF($E$17=2,E47,"")),"") -> 
C50: META PONDERADA | D50: =IF(AND(N23="ANUAL",J23="MENSUAL"),N17/12,IF(AND(N23="ANUAL",J23="TRIMESTRAL"),N17/4,IF(AND(N23="ANUAL",J23="SEMESTRAL"),N17/2,IF(AND(N23="ANUAL",J23="ANUAL"),N17,IF(AND(N23="SEMESTRAL",J23="MENSUAL"),N17/6,IF(AND(N23="SEMESTRAL",J23="TRIMESTRAL"),N17/2,IF(AND(N23="SEMESTRAL",J23="SEMESTRAL"),N17,IF(AND(N23="SEMESTRAL",J23="ANUAL"),"REVISAR FRECUENCIAS",IF(AND(N23="TRIMESTRAL",J23="MENSUAL"),N17/3,IF(AND(N23="TRIMESTRAL",J23="TRIMESTRAL"),N17,IF(AND(N23="TRIMESTRAL",J23="SEMESTRAL"),"REVISAR FRECUENCIAS",IF(AND(N23="TRIMESTRAL",J23="ANUAL"),"REVISAR FRECUENCIAS",IF(AND(N23="MENSUAL",J23="MENSUAL"),N17,IF(AND(N23="MENSUAL",J23="TRIMESTRAL"),"REVISAR FRECUENCIAS",IF(AND(N23="MENSUAL",J23="SEMESTRAL"),"REVISAR FRECUENCIAS",IF(AND(N23="MENSUAL",J23="ANUAL"),"REVISAR FRECUENCIAS","")))))))))))))))) -> 0.9 | E50: =IF(AND(N23="ANUAL",J23="MENSUAL"),N17/12+D50,IF(AND(N23="ANUAL",J23="TRIMESTRAL"),N17/4+D50,IF(AND(N23="ANUAL",J23="SEMESTRAL"),N17/2+D50,IF(AND(N23="SEMESTRAL",J23="MENSUAL"),N17/6+D50,IF(AND(N23="SEMESTRAL",J23="TRIMESTRAL"),N17/2+D50,IF(AND(N23="SEMESTRAL",J23="SEMESTRAL"),N17,IF(AND(N23="TRIMESTRAL",J23="MENSUAL"),N17/3+D50,IF(AND(N23="TRIMESTRAL",J23="TRIMESTRAL"),N17,IF(AND(N23="MENSUAL",J23="MENSUAL"),N17,""))))))))) -> 0.9
C52: NIVEL DE SEGREGACIÓN *
C53: UNIDAD SEGREGADA (Ej. Facultad, Programa Académico, Área) | G53: RESULTADO | K53: ANALISIS DE DATOS SEGREGADO
G72: Estratégico | J72: Eficacia
G73: Misional | J73: Eficiencia
G74: Apoyo | J74: Acreditación
G75: Seguimiento, Medición, Análisis y Evaluación | J75: Positiva
G76: Direccionamiento Estratégico | J76: Negativa
G77: Planeación Institucional | J77: Por Unidad Regional
G78: Proyectos Especiales y Relaciones Interinstitucionales | J78: Por Facultad
G79: Sistemas Integrados | J79: Por Programa Académico
G80: Autoevaluación y Acreditación | J80: Por área
G81: Comunicaciones | J81: Por Laboratorio
G82: Formación y Aprendizaje | J82: Otros
G83: Ciencia, Tecnología e Innovación | J83: No Aplica
G84: Interacción Social Universitaria
G85: Bienestar Universitario
G86: Admisiones y Registro
G87: Graduados
G88: Dialogando con el Mundo
G89: Talento Humano
G90: Jurídica
G91: Financiera
G92: Sistemas y Tecnología
G93: Bienes y Servicios
G94: Documental
G95: Apoyo Académico
G96: Control Interno
G97: Control Disciplinario
G98: Servicio de Atención al Ciudadano

Sheet SCI-8
B2: REGRESAR
E5: MACROPROCESO ESTRATÉGICO | M5: CÓDIGO: ESGr027
E6: PROCESO GESTIÓN SISTEMAS INTEGRADOS - CALIDAD | M6: VERSIÓN: 8
E7: MATRIZ DE MEDICIÓN Y SEGUIMIENTO A LOS PROCESOS DE GESTIÓN | M7: VIGENCIA: 2023-07-28
M8: PÁGINA: 5 de 6
C10: FICHA DE INDICADOR
C12: MACROPROCESO | E12: Seguimiento, Medición, Análisis y Evaluación | I12: NOMBRE DEL INDICADOR | K12: Gestión de planes en estado agregado a estado en ejecución
C13: PROCESO GESTIÓN | E13: Control Interno
C14: RESPONSABLE DE MEDICIÓN | E14: Director de Control Interno
C16: 1. COMPORTAMIENTO DE INDICADOR
C17: CLASIFICACIÓN DE LA MEDICIÓN | E17: 1 | H17: TIPO DE INDICADOR | J17: Eficacia | L17: META | N17: 1
C18: FORMULA | E18: NUMERADOR | G18: Número de planes en estado agregado a estado en ejecución*100 | L18: UNIDAD DE MEDIDA | N18: Porcentaje
E19: DENOMINADOR | G19: Total de planes agregados (sobre la vigencia del 2023 hacia atrás)
C20: TENDENCIA | E20: Positiva | H20: NIVEL DE SEGREGACIÓN * | J20: Otros | L20: ESCALA
L21: Deficiente | M21: Aceptable | N21: Bueno | O21: Excelente
L22: 0% - 69,9% | M22: 70% - 84,9% | N22: 85% - 99,9% | O22: 1
C23: ORIGEN DE DATOS NUMERADOR | E23: Base de datos planes de mejora | H23: FRECUENCIA DE LA MEDICIÓN | J23: TRIMESTRAL | L23: FRECUENCIA DE RESULTADO | N23: ANUAL
C24: ORIGEN DE DATOS DENOMINADOR | E24: Base de datos planes de mejora
C26: RESULTADOS
J27: ANÁLISIS DE DATOS
J28: I TRIMESTRE: Para el I trimestre de la vigencia 2024, 7 de los 22 planes de mejoramiento pasaron de estado agregado a estado ejecución lo que representa un 32%, frente a la meta planteada de 25%. Del total de planes en estado de ejecución para este trimerstre se tiene que 21 pertenecen a ejercicios derivados del proceso de control interno, y 1 pertenece a ejercicios derivados de auditorias del Sistema de Gestión de Seguridad de la Información. II TRIMESTRE: Para el II trimestre de la vigencia 2024, 5 de los 15 planes de mejoramiento pasaron de estado agregado a estado ejecución lo que representa un 55%, frente a la meta planteada de 50%. Del total de planes en estado de ejecución para este trimestre se tiene que 14 pertenecen a ejercicios derivados del proceso de control interno, y 1 pertenece a ejercicios derivados de auditorias del Sistema de Gestión de Seguridad de la Información. III TRIMESTRE: Para el III trimestre de la vigencia 2024, 4 de los 7 planes de mejoramiento (Gestión Control Interno) pasaron de estado agregado a estado ejecución; disminuyó los pendientes debido a que 3 planes fueron anulados, por lo que se ajusta la meta pasando de un total de 22 planes a 19. Los 3 planes anulados pertenecían a los siguientes procesos: 1 Admisiones y Registro, 1 Formación y Aprendizaje y por último 1 de Sistemas y Tecnología; los planes fueron derivados de las auditorías de: Gestión de Control Interno (2) y del Sistema de Gestión de Seguridad de la Información (1). En este sentido, el porcentaje obtenido para este trimestre representa un 84%, frente a la meta planteada de 75%. IV TRIMESTRE: Para el IV trimestre de la vigencia 2024, se anula (1) plan de mejoramiento que corresponde al proceso de gestión financiera derivado de ejecicios de Control Interno por lo que se volvió a ajustar la meta pasando de un total de 19 planes a 18. Una vez anulado el plan de mejoramiento perteneciente al proceso de direccion finanaciera, quedaron 2 planes de mejoramiento de los cuales 0 pasaron de estado agregado a estado de ejecución. Estos planes pertenecen al proceso de planeación institucional y son derivados de ejecicios de control interno. De acuerdo con la gestión por parte de la dirección de control interno, se verifica en el aplicaivo de "Acciones correctivas y de mejora" las acciones implementadas desde la dependencia, donde se puede evidenciar los pronunciamientos efectuados por parte del profesional a cargo de la verificación y viabilidad de estos planes, así tambien se evidencia la gestión realizada a travez de correos y mesas de trabajo, sin que a la fecha se obtuviera una respuesta por parte del proceso. En este sentido, el porcentaje obtenido para este trimestre representa un 89%, frente a la meta planteada de 100%, lo anterior, incumpliendo el porcentaje proyectado para la respectiva vigencia.
J34: ACCIÓN FORMULADA
J35: I TRIMESTRE: 1. Seguimiento y monitoreo mensual a los profesionales de control interno frente a la gestión de los planes de mejoramiento. II TRIMESTRE: 1. Seguimiento y monitoreo mensual a los profesionales de control interno frente a la gestión de los planes de mejoramiento. III TRIMESTRE: 1. Seguimiento y monitoreo mensual a los profesionales de control interno frente a la gestión de los planes de mejoramiento. IV TRIMESTRE: 1. Seguimiento y monitoreo mensual a los profesionales de control interno frente a la gestión de los planes de mejoramiento. 2. Realizar mesas de trabajo con los líderes de los procesos con el fin de establecer soluciones para el cambio de los planes de mejoramiento de agregado a ejecución. 3. Establecer funciones preventivas en caso de no cumplir con los tiempos estipoulados dentro del procedimiento SCIP02 "Acciones correctivas y de Mejora".
J41: RESPONSABLE
J42: =E14 -> Director de Control Interno
C45: PERIODO DE EVALUACIÓN
C46: MES | D46: =IF(J23="MENSUAL","ENERO",IF(J23="TRIMESTRAL","MARZO",IF(J23="SEMESTRAL","JUNIO",IF(J23="ANUAL",YEAR(TODAY()),"")))) -> MARZO | E46: =IF(J23="MENSUAL","FEBRERO",IF(J23="TRIMESTRAL","JUNIO",IF(J23="SEMESTRAL","DICIEMBRE",""))) -> JUNIO | F46: =IF(J23="MENSUAL","MARZO",IF(J23="TRIMESTRAL","SEPTIEMBRE","")) -> SEPTIEMBRE | G46: =IF(J23="MENSUAL","ABRIL",IF(J23="TRIMESTRAL","DICIEMBRE","")) -> DICIEMBRE | H46: =IF(J23="MENSUAL","MAYO","") ->  | I46: =IF(J23="MENSUAL","JUNIO","") ->  | J46: =IF(J23="MENSUAL","JULIO","") ->  | K46: =IF(J23="MENSUAL","AGOSTO","") ->  | L46: =IF(J23="MENSUAL","SEPTIEMBRE","") ->  | M46: =IF(J23="MENSUAL","OCTUBRE","") ->  | N46: =IF(J23="MENSUAL","NOVIEMBRE","") ->  | O46: =IF(J23="MENSUAL","DICIEMBRE","") -> 
C47: =G18 -> Número de planes en estado agregado a estado en ejecución*100 | D47: 7 | E47: =D47+5 -> 12 | F47: =+E47+4 -> 16 | G47: =+F47+0 -> 16
C48: =G19 -> Total de planes agregados (sobre la vigencia del 2023 hacia atrás) | D48: 22 | E48: 22 | F48: =22-3 -> 19 | G48: =22-4 -> 18
C49: VALOR | D49: =IFERROR(IF($E$17=1,D47/D48,IF($E$17=2,D47,"")),"") -> 0.3181818182 | E49: =IFERROR(IF($E$17=1,E47/E48,IF($E$17=2,E47,"")),"") -> 0.5454545455 | F49: 0.8421052632 | G49: 0.8888888889
C50: META PONDERADA | D50: =IF(AND(N23="ANUAL",J23="MENSUAL"),N17/12,IF(AND(N23="ANUAL",J23="TRIMESTRAL"),N17/4,IF(AND(N23="ANUAL",J23="SEMESTRAL"),N17/2,IF(AND(N23="ANUAL",J23="ANUAL"),N17,IF(AND(N23="SEMESTRAL",J23="MENSUAL"),N17/6,IF(AND(N23="SEMESTRAL",J23="TRIMESTRAL"),N17/2,IF(AND(N23="SEMESTRAL",J23="SEMESTRAL"),N17,IF(AND(N23="SEMESTRAL",J23="ANUAL"),"REVISAR FRECUENCIAS",IF(AND(N23="TRIMESTRAL",J23="MENSUAL"),N17/3,IF(AND(N23="TRIMESTRAL",J23="TRIMESTRAL"),N17,IF(AND(N23="TRIMESTRAL",J23="SEMESTRAL"),"REVISAR FRECUENCIAS",IF(AND(N23="TRIMESTRAL",J23="ANUAL"),"REVISAR FRECUENCIAS",IF(AND(N23="MENSUAL",J23="MENSUAL"),N17,IF(AND(N23="MENSUAL",J23="TRIMESTRAL"),"REVISAR FRECUENCIAS",IF(AND(N23="MENSUAL",J23="SEMESTRAL"),"REVISAR FRECUENCIAS",IF(AND(N23="MENSUAL",J23="ANUAL"),"REVISAR FRECUENCIAS","")))))))))))))))) -> 0.25 | E50: =IF(AND(N23="ANUAL",J23="MENSUAL"),N17/12+D50,IF(AND(N23="ANUAL",J23="TRIMESTRAL"),N17/4+D50,IF(AND(N23="ANUAL",J23="SEMESTRAL"),N17/2+D50,IF(AND(N23="SEMESTRAL",J23="MENSUAL"),N17/6+D50,IF(AND(N23="SEMESTRAL",J23="TRIMESTRAL"),N17/2+D50,IF(AND(N23="SEMESTRAL",J23="SEMESTRAL"),N17,IF(AND(N23="TRIMESTRAL",J23="MENSUAL"),N17/3+D50,IF(AND(N23="TRIMESTRAL",J23="TRIMESTRAL"),N17,IF(AND(N23="MENSUAL",J23="MENSUAL"),N17,""))))))))) -> 0.5 | F50: =IF(AND(N23="ANUAL",J23="MENSUAL"),N17/12+E50,IF(AND(N23="ANUAL",J23="TRIMESTRAL"),N17/4+E50,IF(AND(N23="SEMESTRAL",J23="MENSUAL"),N17/6+E50,IF(AND(N23="SEMESTRAL",J23="TRIMESTRAL"),N17/2,IF(AND(N23="TRIMESTRAL",J23="MENSUAL"),N17/3+E50,IF(AND(N23="TRIMESTRAL",J23="TRIMESTRAL"),N17,IF(AND(N23="MENSUAL",J23="MENSUAL"),N17,""))))))) -> 0.75 | G50: =IF(AND(N23="ANUAL",J23="MENSUAL"),N17/12+F50,IF(AND(N23="ANUAL",J23="TRIMESTRAL"),N17/4+F50,IF(AND(N23="SEMESTRAL",J23="MENSUAL"),N17/6+F50,IF(AND(N23="SEMESTRAL",J23="TRIMESTRAL"),N17/2+F50,IF(AND(N23="TRIMESTRAL",J23="MENSUAL"),N17/3,IF(AND(N23="TRIMESTRAL",J23="TRIMESTRAL"),N17,IF(AND(N23="MENSUAL",J23="MENSUAL"),N17,""))))))) -> 1 | H50: =IF(AND($N$23="ANUAL",$J$23="MENSUAL"),$N$17/12+G50,IF(AND(N23="SEMESTRAL",J23="MENSUAL"),N17/6+G50,IF(AND(N23="TRIMESTRAL",J23="MENSUAL"),N17/3+G50,IF(AND(N23="MENSUAL",J23="MENSUAL"),N17,"")))) ->  | I50: =IF(AND($N$23="ANUAL",$J$23="MENSUAL"),$N$17/12+H50,IF(AND(N23="SEMESTRAL",J23="MENSUAL"),N17/6+H50,IF(AND(N23="TRIMESTRAL",J23="MENSUAL"),N17/3+H50,IF(AND(N23="MENSUAL",J23="MENSUAL"),N17,"")))) ->  | J50: =IF(AND($N$23="ANUAL",$J$23="MENSUAL"),$N$17/12+I50,IF(AND(N23="SEMESTRAL",J23="MENSUAL"),N17/6,IF(AND(N23="TRIMESTRAL",J23="MENSUAL"),N17/3,IF(AND(N23="MENSUAL",J23="MENSUAL"),N17,"")))) ->  | K50: =IF(AND($N$23="ANUAL",$J$23="MENSUAL"),$N$17/12+J50,IF(AND(N23="SEMESTRAL",J23="MENSUAL"),N17/6+J50,IF(AND(N23="TRIMESTRAL",J23="MENSUAL"),N17/3+J50,IF(AND(N23="MENSUAL",J23="MENSUAL"),N17,"")))) ->  | L50: =IF(AND($N$23="ANUAL",$J$23="MENSUAL"),$N$17/12+K50,IF(AND(N23="SEMESTRAL",J23="MENSUAL"),N17/6+K50,IF(AND(N23="TRIMESTRAL",J23="MENSUAL"),N17/3+K50,IF(AND(N23="MENSUAL",J23="MENSUAL"),N17,"")))) ->  | M50: =IF(AND($N$23="ANUAL",$J$23="MENSUAL"),$N$17/12+L50,IF(AND(N23="SEMESTRAL",J23="MENSUAL"),N17/6+L50,IF(AND(N23="TRIMESTRAL",J23="MENSUAL"),N17/3,IF(AND(N23="MENSUAL",J23="MENSUAL"),N17,"")))) ->  | N50: =IF(AND($N$23="ANUAL",$J$23="MENSUAL"),$N$17/12+M50,IF(AND(N23="SEMESTRAL",J23="MENSUAL"),N17/6+M50,IF(AND(N23="TRIMESTRAL",J23="MENSUAL"),N17/3+M50,IF(AND(N23="MENSUAL",J23="MENSUAL"),N17,"")))) ->  | O50: =IF(AND($N$23="ANUAL",$J$23="MENSUAL"),$N$17/12+N50,IF(AND(N23="SEMESTRAL",J23="MENSUAL"),N17/6+N50,IF(AND(N23="TRIMESTRAL",J23="MENSUAL"),N17/3+N50,IF(AND(N23="MENSUAL",J23="MENSUAL"),N17,"")))) -> 
C52: NIVEL DE SEGREGACIÓN *
C53: UNIDAD SEGREGADA (Ej. Facultad, Programa Académico, Área) | G53: RESULTADO | K53: ANALISIS DE DATOS SEGREGADO
C54: Gestión Control Interno | G54: =0/3 -> 0 | K54: De los 2 planes de mejoramiento agregados (sobre la vigencia del 2023 hacia atrás), los 2 corresponden a los ejercicios derivados de Control Interno. Para el cuarto trimestre de la vigencia, se encuentran en estado "Ejecucción" 0 planes de mejoramiento.
C55: Sistema de Gestión de la Calidad | G55: N/A | K55: N/A
C56: Sistema de Gestión Ambiental | G56: N/A | K56: N/A
C57: Sistema de Gestión de la Seguridad y Salud en el Trabajo | G57: N/A | K57: N/A
C58: Sistema de Gestión de Seguridad de la Información | G58: N/A | K58: N/A
C59: NIVEL DE SEGREGACIÓN *
C60: UNIDAD SEGREGADA (Ej. Facultad, Programa Académico, Área) | G60: RESULTADO | K60: ANALISIS DE DATOS SEGREGADO
C61: Gestión Autoevaluación y Acreditación | G61: N/A | K61: N/A
C62: Gestión Comunicaciones | G62: N/A | K62: N/A
C63: Gestión Planeación Institucional | G63: =0/2 -> 0 | K63: En el cuarto trimestre se pasaron a estado "Ejecución" 0 de 2 planes de mejoramiento agregados (sobre la vigencia del 2023 hacia atrás).
C64: Gestión de Proyectos Especiales y Relaciones Interinstitucionales | G64: N/A | K64: N/A
C65: Gestión Admisiones y Registro | G65: N/A | K65: N/A
C66: Gestión Bienestar Universitario | G66: N/A | K66: N/A
C67: Gestión Ciencia, Tecnología e Innovación | G67: N/A | K67: N/A
C68: Gestión Dialogando con el Mundo | G68: N/A | K68: N/A
C69: Gestión Formación y Aprendizaje | G69: N/A | K69: N/A
C70: Gestión Graduados | G70: N/A | K70: N/A
C71: Gestión Interacción Social Universitaria | G71: N/A | K71: N/A
C72: Gestión Apoyo Académico | G72: N/A | K72: N/A
C73: Gestión Bienes y Servicios | G73: N/A | K73: N/A
C74: Gestión Documental | G74: N/A | K74: N/A
C75: Gestión Financiera | G75: N/A | K75: En el cuarto trimestre se pasaron a estado "Ejecución" 0 de 0 planes de mejoramiento agregados (sobre la vigencia del 2023 hacia atrás), ya que el unico plan que se encontraba en estado agregado fue anulado.
C76: Gestión Jurídica | G76: N/A | K76: N/A
C77: Gestión Sistemas y Tecnologías | G77: N/A | K77: N/A
C78: Gestión Talento Humano | G78: N/A | K78: N/A
C79: Gestión Secretaria General | G79: N/A | K79: N/A
C80: Gestión Control Disciplinario | G80: N/A | K80: N/A
C81: Control Interno | G81: N/A | K81: N/A
C82: Gestión Servicio de Atención al Ciudadano | G82: N/A | K82: N/A
C83: NIVEL DE SEGREGACIÓN *
C84: UNIDAD SEGREGADA (Ej. Facultad, Programa Académico, Área) | G84: RESULTADO | K84: ANALISIS DE DATOS SEGREGADO
C85: Jaime Ortiz | G85: N/A | K85: N/A
C86: Yuly Rivas | G86: N/A | K86: N/A
C87: Juan David García | G87: N/A | K87: N/A
C88: Daniel Soto | G88: =0/2 -> 0 | K88: En el cuarto trimestre se pasaron a estado "Ejecución" 0 de los 2 planes de mejoramiento agregados (sobre la vigencia del 2023 hacia atrás), correspondiente a Secretaria General y Planeación Institucional
C89: Miguel Gómez | G89: N/A | K89: N/A
C90: Cesar Bernal | G90: N/A | K90: N/A
C91: Andrea Gallego | G91: N/A | K91: N/A
C92: Magally Cruz | G92: N/A | K92: N/A
C93: Imayinne Galvis | G93: =1/1 -> 1 | K93: N/A
C94: Camilo Rengifo | G94: N/A | K94: N/A
G95: Direccionamiento Estratégico
G96: Planeación Institucional
G97: Proyectos Especiales y Relaciones Interinstitucionales
G98: Sistemas Integrados | H98: Por Unidad Regional | I98: Positiva | J98: Eficacia | K98: Estratégico
G99: Autoevaluación y Acreditación | H99: Por Facultad | I99: Negativa | J99: Eficiencia | K99: Misional
G100: Comunicaciones | H100: Por Programa Académico | J100: Acreditación | K100: Apoyo
G101: Formación y Aprendizaje | H101: Por área | K101: Seguimiento, Medición, Análisis y Evaluación
G102: Ciencia, Tecnología e Innovación | H102: Por Laboratorio
G103: Interacción Social Universitaria | H103: Otros
G104: Bienestar Universitario | H104: No Aplica
G105: Admisiones y Registro
G106: Graduados
G107: Dialogando con el Mundo
G108: Talento Humano
G109: Jurídica
G110: Financiera
G111: Sistemas y Tecnología
G112: Bienes y Servicios
G113: Documental
G114: Apoyo Académico
G115: Control Interno
G116: Control Disciplinario
G117: Servicio de Atención al Ciudadano

Sheet ACTUALIZACIONES
C2: MACROPROCESO ESTRATÉGICO | E2: CÓDIGO: ESGr027
C3: PROCESO GESTIÓN SISTEMAS INTEGRADOS - CALIDAD | E3: VERSIÓN: 8
C4: MATRIZ DE MEDICIÓN Y SEGUIMIENTO A LOS PROCESOS DE GESTIÓN | E4: VIGENCIA: 2023-07-28
E5: PÁGINA: 6 de 6
B7: CONTROL DE ACTUALIZACIONES
B8: FECHA | C8: DESCRIPCIÓN DE LA ACTUALIZACIÓN | D8: RESPONSABLE | E8: CARGO
B9: 2023-05-02 | C9: Durante la mesa de trabajo del 16 de marzo de 2023 se presentaron los siguientes ajustes en los indicadores: * INS 2: Se agrega dos niveles de segregación, 1. por Sistemas de Gestión y 2. por procesos. Se actualiza la formula de la siguiente manera: de (Hallazgos cerrados/Hallazgos en ejecución)*100 a (Planes cerrados/Planes en ejecución (vigencia actual y anteriores)*100. * SCI-7 Se incrementa la meta de 50 a 60 * SCI-8 Se establece un nuevo indicador para hacer seguimiento al cumplimiento sobre los planes agregados que sean actualizados a estado en ejecución. El 10 de abril se realizaron ajustes adicionales a los indicadores: * INS 2 el cual se llevó a la comisión de control interno y se aprueba una reducción en la meta del 70% teniendo en cuenta los resultados trazables y, * INS 5: Se revisó la metodología y se ajustó. El 25 de abril se determinó eliminar el indicador SCI-7, teniendo en cuenta que, la misma medición se está registrando en el indicador institucional INS 2. El 02 de mayo se ajustó la formula del indicador INS 2: (Planes cerrados/Planes abiertos (sobre la vigencia del 2022 hacia atrás)*100, y será con una frecuencia de resultado anual. | D9: Carolina Gómez Fontecha | E9: Directora de Control Interno
B10: 2023-08-01 | C10: Se incorpora Planificación de Actividades para cada Obejtivo Específico | D10: Carolina Gómez Fontecha | E10: Directora de Control Interno
B11: 2024-02-21 | C11: Se actualiza la meta y escala de medición del indicador INS 2 pasando del 70% al 75%, luego de revisada la tendencia y resultados de la vigencia anterior, generando un ambiente retador para el proceso. Se actualiza la la meta y escala de medición del indicador INS 5 pasando del 65% al 80%, luego de revisada la tendencia y resultados de la vigencia anterior, generando un ambiente retador para el proceso, teniendo en cuenta el control a estos riesgos en escala alta y extrema. Se inactiva el indicador SCI-6, ya que al adoptar dentro de las sesiones de la Comisión de Control Interno, la revisión y aprobación de amplición en las agendas de auditoria y entrega de preinformes, dependiendo del alcance y sedes auditadas estas cumplen con la meta y carece de sustento la medición, así las cosas, al evaluar la tendencia y medición de la vigencia anterior, que cierra en 100%, se da inactivación al mismo. | D11: Carolina Gómez Fontecha | E11: Directora de Control Interno
B17: Diagonal 18 No. 20-29 Fusagasugá – Cundinamarca Teléfono (601) 8281483 Línea Gratuita 018000180414 www.ucundinamarca.edu.co E-mail: info@ucundinamarca.edu.co NIT: 890.680.062-2
B20: Documento controlado por el Sistema de Gestión de la Calidad Asegúrese que corresponde a la última versión consultando el Portal Institucional

Sheet ITEM (hidden)
A1: MENSUAL | C1: NÚMERO
A2: TRIMESTRAL | C2: PORCENTAJE
A3: SEMESTRAL
A4: ANUAL
